Workbook

Sheet CAP JUR
A1: FECHA Y HORA DE CIERRE DEL PROCESO: 05 DE DICIEMBRE DE 2025 A LAS 10:00 HORAS | C1: SPO 2025-7: CONTRATO MARCO PARA LA PRESTACIÓN DE SERVICIOS ESPECIALIZADOS ORIENTADOS A LA IMPLEMENTACIÓN Y OPERACIÓN DEL ECOSISTEMA TECNOLÓGICO DEL SISTEMA INTELIGENTE DE MOVILIDAD DE MEDELLÍNCONTRATO MARCO PARA LA PRESTACIÓN DE SERVICIOS ESPECIALIZADOS ORIENTADOS A LA IMPLEMENTACIÓN Y OPERACIÓN DEL ECOSISTEMA TECNOLÓGICO DEL SISTEMA INTELIGENTE DE MOVILIDAD DE MEDELLÍN
C2: OFERENTE 1 | G2: OFERENTE 2 | K2: OFERENTE 3 | P2: OFERENTE 4
A3: REQUISITOS DE PARTICIPACIÓN Y HABILITACIÓN 3.1.1. CAPACIDAD JURÍDICA | C3: COMPAÑÍA INTERNACIONAL DE INTEGRACION CI2 SA | E3: OBSERVACIÓN | F3: REQUERIDO | G3: TECNOLOGÍAS DE LA INFORMACIÓN Y PAGO INTEGRADO S.A.S. TIPI | I3: OBSERVACIÓN | J3: REQUERIDO | K3: UNIÓN TEMPORAL SIM MEDELLIN VF (FRISSON TECNOLOGIES S.A.S 90% - VERYTEL S.A. 10%) | N3: OBSERVACIÓN | O3: REQUERIDO | P3: INTEIA S.A.S. | R3: OBSERVACIÓN | S3: REQUERIDO
C4: 830056149-0 | D4: FOLIO FÍSICO N° | G4: 900446461-1 | H4: FOLIO FÍSICO N° | K4: 900784911-3 FRISSON TECNOLOGIES S.A.S | L4: 830050633-7 VERYTEL S.A. | M4: FOLIO FÍSICO N° | P4: 900457885-8 | Q4: FOLIO FÍSICO N°
A5: UBICACIÓN PLIEGO | B5: DESCRIPCIÓN REQUISITO | C5: APORTADO | G5: APORTADO | K5: APORTADO | L5: APORTADO | P5: APORTADO
A6: 3.1.1.1. | B6: Carta de presentación | C6: SI | D6: 4-5 | F6: NO | G6: SI | H6: 01 | J6: NO | K6: SI | M6: 7-9 | O6: NO | P6: SI | Q6: 3-4 | S6: NO
A7: 3.1.1.2 | B7: Copia de la cédula | C7: SI | D7: 7 | F7: NO | G7: SI | H7: 02 | J7: NO | K7: SI | L7: SI | M7: 13-15 | O7: NO | P7: SI | Q7: 5 | S7: NO
A8: 3.1.1.3 | B8: Certificado de existencia y representación legal (Con fecha no anterior a 1 mes a la fecha del cierre) | C8: SI | D8: 9-20 | E8: 24/11/205 | F8: NO | G8: SI | H8: 03-10 | I8: 21/11/2025 | J8: NO | K8: SI | L8: SI | M8: 18-38 | O8: NO | P8: SI | Q8: 6-43 | R8: 4/12/2025 | S8: NO
B9: Certificado de autorización para contratar, cuando aplique | C9: SI | D9: 22-23 | E9: 2025-12-02 | F9: - | G9: SI | H9: 11 12 | I9: 2025-11-26 | J9: NO | K9: N/A | L9: - | M9: - | N9: - | O9: - | P9: N/A | Q9: - | R9: - | S9: NO
B10: ANEXO N° 22-CONFORMACIÓN DE PROPONENTE PRURAL | C10: N/A | D10: - | E10: - | F10: - | G10: N/A | H10: - | I10: - | J10: NO | K10: SI | M10: 40-42 | O10: NO | P10: N/A | Q10: - | R10: - | S10: NO
A11: 3.1.1.4 | B11: Registro Único Tributario-RUT | C11: SI | D11: 25-28 | F11: NO | G11: SI | H11: 13-17 | J11: NO | K11: SI | L11: SI | M11: 45-55 | O11: NO | P11: SI | Q11: 44-49 | S11: NO
A12: 3.1.1.5 | B12: Acreditación Certificación de Pagos de sistema de Seguridad Social Integral y Parafiscales | C12: SI | D12: 30-35 | E12: REV. FISCAL JULIANA BUSTOS CC 1088021381 TP 269994 JCC 6/10/2025 | F12: NO | G12: SI | H12: 18-22 | I12: REV. FISCAL GLORIA PALACIO RIOS CC 1020436254 TP187422 JCC 7/10/2025 | J12: NO | K12: SI | M12: 58-67 | O12: NO | P12: SI | Q12: 50-51 | R12: REV. FISCAL DELOITTE&TOUCHE SAS NIT 860005813-4 TP 213621-T | S12: NO
A13: 3.1.1.6 | B13: Registro Único de Proponentes – RUP | C13: SI | D13: 39-120 | E13: 24/11/2025 NO REPORTA SANCIONES VIGENTES Acreditación Códigos UNSPSC: Cumple | F13: NO | G13: SI | H13: 23-56 | I13: 6/11/2025 NO REPORTA SANCIONES VIGENTES Acreditación Códigos UNSPSC: Cumple | J13: NO | K13: SI | L13: SI | M13: 68-619 | N13: FRISSON NO REPORTA SANCIONES VIGENTES VERYTEL NO REPORTA SANCIONES VIGENTES Acreditación Códigos UNSPSC: Cumple | O13: NO | P13: SI | Q13: 52-115 | R13: NO REPORTA SANCIONES VIGENTES Acreditación Códigos UNSPSC: Cumple | S13: NO
A14: 3.1.1.9. | B14: Garantía para cubrir los riesgos derivados del incumplimiento del ofrecimiento: Se deberá anexar garantía de seriedad de la propuesta, a favor de la “EMPRESA PARA LA SEGURIDAD Y SOLUCIONES URBANAS – ESU”, con NIT. 890.984.761-8, constituida ante una compañía de seguros o entidad bancaria legalmente establecida en Colombia, o patrimonio autónomo, y que contenga los siguientes aspectos: ● Valor asegurado: Equivalente al diez por ciento (10%) del valor presentado en la propuesta economica ● Vigencia: Tres (3) meses, contados a partir de la fecha de cierre del proceso contractual. ● Tomador y/o afianzado: La garantía deberá tomarse con el nombre o razón social que figura en el Certificado de Existencia y Representación Legal expedido por la Cámara de Comercio. ● Asegurado y beneficiario: Empresa para la Seguridad y Soluciones Urbanas – ESU. Objeto y numero del proceso. ● Firmas del tomador y de la aseguradora que la expide. | C14: SI | D14: 130-138 | E14: SEGUROS LA EQUIDAD N° AB009138 $3,015,000,000 | F14: NO | G14: SI | H14: 58-60 | I14: SURA N° 4405570 $3,000,000,000 | J14: NO | K14: SI | M14: 622-625 | N14: SEGUROS DEL ESTADO N° 11-44-101271548 $ 3,000,000,000 | O14: NO | P14: SI | Q14: 116-125 | R14: SEGUROS DEL ESTADO N° 14-44-101250832 $2,436,788,445 NO CUMPLE CON EL 10% COMO VALOR ASEGURADO SOBRE EL VALOR TOTAL DE LA OFERTA | S14: SI
A15: 3.1.1.10. | B15: Certificado de Procuraduría General de la Nación (Con fecha no anterior a 1 mes de la fecha del cierre) | C15: SI | D15: 140-141 | E15: 2025-12-02 | F15: NO | G15: SI | H15: 61-62 | I15: 2025-11-25 | J15: NO | K15: SI | L15: SII | M15: 627-633 | N15: 2025-12-02 | O15: NO | P15: SI | Q15: 129-130 | R15: 2025-12-04 | S15: NO
A16: 3.1.1.11. | B16: Certificado de Contraloría General de la Nación (Con fecha no anterior a 1 mes de la fecha del cierre) | C16: SI | D16: 143-144 | E16: 2025-12-02 | F16: NO | G16: SI | H16: 63-64 | I16: 2025-11-25 | J16: NO | K16: SI | L16: SI | M16: 635-641 | N16: 2025-12-02 | O16: NO | P16: SI | Q16: 127-128 | R16: 2025-12-04 | S16: NO
A17: 3.1.1.12 | B17: Certificado de antecedentes judiciales (Con fecha no anterior a 1 mes de la fecha del cierre) | C17: SI | D17: 146 | E17: 2025-12-02 | F17: NO | G17: SI | H17: 65 | I17: 2025-11-25 | J17: NO | K17: SI | L17: SI | M17: 643-647 | N17: 2025-12-02 | O17: NO | P17: SI | Q17: 131 | R17: 2025-12-04 | S17: NO
A18: 3.1.1.13 | B18: Certificado del Registro Nacional de Medidas Correctivas-RNMC, donde conste que a la persona o representante legal no le han sido impuestas multas por infracción del Código de Policía o, si presenta multas (Con fecha no anterior a 1 mes de la fecha del cierre) | C18: SI | D18: 148 | E18: 2/12/2025 SOLO APORTAN EL DE PERSONA JURIDICA, NO OBSTANTE, LA ENTIDAD VERIFICO AL RL | F18: NO | G18: SI | H18: 66-67 | I18: 2025-11-25 | J18: NO | K18: SI | L18: SI | M18: 649-653 | N18: 2025-12-02 | O18: NO | P18: SI | Q18: 133 | R18: 2025-12-04 | S18: NO
A19: 3.1.1.21. | B19: Certificado Registro de Deudores Alimentarios Morosos- REDAM (Con fecha no anterior a 30 días calendario 19/08/2025) | C19: SI | D19: 186 | F19: NO | G19: SI | H19: 92 | I19: 2025-11-25 | J19: NO | K19: SI | L19: SI | M19: 752-756 | N19: 2025-12-02 | O19: NO | P19: SI | Q19: 135 | R19: 2025-12-04 | S19: NO
A20: 3.1.1.14 | B20: Certificado de la Consulta de Inhabilidades de la Ley 1918 de 2018 y Decreto 753 de 2019 del representante legal de la empresa (Con fecha no anterior a 1 mes de la fecha del cierre) | C20: NO | D20: - | E20: NO APORTADO PERO FUE VERIFICADO POR LA ENTIDAD | F20: NO | G20: SI | H20: 68 | I20: 2025-11-25 | J20: NO | K20: SI | L20: SI | M20: 655-659 | N20: 2025-12-02 | O20: NO | P20: NO | Q20: - | R20: VERIFICADO POR LA ENTIDAD EL 5/12/2025 | S20: NO
A21: 3.1.1.15. | B21: Documentación para acreditar la implementación del sistema de gestión de seguridad en el trabajo (SG-SST): encontrándose una calificación Aceptable (85%) | C21: SI | D21: 153-184 | F21: NO | G21: SI | H21: 69-85 | J21: NO | K21: SI | L21: SI | M21: 660-750 | O21: NO | P21: SI | Q21: 136-154 | R21: No aportó diligenciado el ANEXO N° 5 - CERTIFICACIÓN NÚMERO DE EMPLEADOS Y TIPO(S) DE RIESGOS DE LA ARL. | S21: SI
A22: 3.1.1.22. | B22: Formato de autorización de tratamiento de datos personales conforme a la ley 1581 de 2012 y el decreto 1074 de 2015 | C22: SI | D22: 188-189 | F22: NO | G22: SI | H22: 93 | J22: NO | K22: SI | L22: S | M22: 758-763 | O22: NO | P22: SI | Q22: 155-156 | S22: NO
A23: 3.1.1.23. | B23: Certificado de Reciprocidad: Si el proponente es extranjero, podrá aportar el certificado de reciprocidad conforme a lo establecido en el artículo 20 de la Ley 80 de 1993 | C23: N/A | D23: - | E23: - | F23: - | G23: N/A | H23: - | I23: - | J23: NO | K23: N/A | L23: - | M23: - | N23: - | O23: - | P23: N/A | Q23: - | R23: - | S23: NO
A24: 3.1.1.24 | B24: Diligenciar ANEXO N° 6 CERTIFICADO DE INHABILIDADES E INCOMPATIBILIDADES | C24: SI | D24: 196 | F24: NO | G24: SI | H24: 94 | J24: NO | K24: SI | L24: SI | M24: 766-768 | O24: NO | P24: SI | Q24: 179 | S24: NO
A25: 3.1.2.6. | B25: ANEXO N° 11 - COMPRA PÚBLICA INNOVADORA | C25: SI | D25: 262 | F25: NO | G25: SI | H25: 191 | J25: NO | K25: SI | M25: 1012 | O25: NO | P25: SI | Q25: 207 | S25: NO
B26: ANEXO N°12 - COMPRA PÚBLICA SOSTENIBLE | C26: SI | D26: 264 | F26: NO | G26: SI | H26: 192 | J26: NO | K26: SI | M26: 1013 | O26: NO | P26: SI | Q26: 208 | S26: NO
B27: ANEXO N°13- COMPRA PÚBLICA SOCIALMENTE RESPONSABLE | C27: SI | D27: 266 | F27: NO | G27: SI | H27: 132 | J27: NO | K27: SI | M27: 1014 | O27: NO | P27: SI | Q27: 209 | S27: NO
A28: RESULTADO | C28: HABILITADO | G28: HABILITADO | K28: HABILITADO | P28: NO HABILITADO

Sheet CAP TEC - Exp General
A1: REQUISITOS DE PARTICIPACIÓN Y HABILITACIÓN 3.1.2.CAPACIDAD TECNICA 3.1.2.1. Experiencia General Habilitante | B1: COMPAÑÍA INTERNACIONAL DE INTEGRACION CI2 SA | G1: TECNOLOGÍAS DE LA INFORMACIÓN Y PAGO INTEGRADO S.A.S. TIPI | L1: UNIÓN TEMPORAL SIM MEDELLIN VF (FRISSON TECNOLOGIES S.A.S 90% - VERYTEL S.A. 10%) | Q1: INTEIA S.A.S.
A2: DESCRIPCIÓN REQUISITO | B2: Contrato 1 | C2: Contrato 2 | D2: Contrato 3 | E2: Folio | F2: Observacion | G2: Contrato 1 | H2: Contrato 2 | I2: Contrato 3 | J2: Folio | K2: Observacion | L2: Contrato 1 | M2: Contrato 2 | N2: Contrato 3 | O2: Folio | P2: Observacion | Q2: Contrato 1 | R2: Contrato 2 | S2: Contrato 3 | T2: Folio | U2: Observacion | AK2: ALARMAR | AL2: ATLAS SEGURIDAD | AM2: CABLETRONICS S.A.S | AN2: CI2 | AO2: CORTE INGLES | AP2: ENERGIZANDO INGENIERIA Y CONSTRUCCIÓN | AQ2: G4S - SECURE SOLUTIONS COLOMBIA S.A. | AR2: INDRA DE COLOMBIA S.A.S | AS2: INSITEL | AT2: ISEC | AU2: MELTEC COMUNICACIONES S.A | AV2: NEC DE COLOMBIA | AW2: PROSEGUR | AX2: SITECSYS | AY2: SONDA DE COLOMBIA | AZ2: TIC COLOMBIA S.A.S | BA2: CURACAO DE COLOMBIA | BB2: SECURITY VIDEO EQUIPMENT | BC2: SEGURITECH | BD2: ITELCA | BE2: CIS
A3: Los oferentes deberán acreditar experiencia general en mínimo uno (1) y máximo tres (3) certificados de contratos en papel membrete ejecutados, terminados o en ejecución | B3: Cumple | C3: Cumple | D3: No cumple | E3: - | F3: Contrato 3 - En ejecución: No cumple con el porcentaje de ejecución fisica y no tiene la declaración expresa de que el contratista no se encuentra inmerso en procesos sancionatorios, de imposición de multas, medidas de apremio, o cualquier otra situación que evidencie incumplimiento, atraso injustificado o afectación a la correcta ejecución del contrato. | G3: Cumple | H3: Cumple | I3: N/A | J3: - | K3: - | L3: Cumple | M3: Cumple | N3: Cumple | O3: - | P3: - | Q3: No cumple | R3: N/A | S3: N/A | T3: - | U3: Contrato 1 - En ejecución: No cumple con el porcentaje de ejecución fisica y no tiene la declaración expresa de que el contratista no se encuentra inmerso en procesos sancionatorios, de imposición de multas, medidas de apremio, o cualquier otra situación que evidencie incumplimiento, atraso injustificado o afectación a la correcta ejecución del contrato.
A4: Por un valor que sumado sea igual o superior a CINCO MIL (5.000) SMLMV | B4: 8333 | C4: 766 | D4: 4947 | E4: Contrato 1: 101 Contrato 2: 112 Cotrato 3: 214 | F4: - | G4: 3013 | H4: 2756 | I4: N/A | J4: Contrato 1: 44 Contrato 2:49 | K4: - | L4: =7553.1+2164.04 -> 9717 | M4: =5255.9991 +159.2727 -> 5415 | N4: =3108.8211+94.2 -> 3203 | O4: Contrato 1: 230,552 Contrato 2: 152, 481 Contrato 3: 173, 530 | P4: - | Q4: No cumple | R4: N/A | S4: N/A | T4: 182 | U4: Contrato 1 - El certificado aportado no contiene valor del contrato
A5: Cuyo objeto y/o alcance y/o actividades estén relacionados con: Suministro, implementación, integracion, operación, soporte y/o mantenimiento de soluciones tecnológicas para sistemas inteligentes | B5: Cumple | C5: Cumple | D5: Cumple | E5: Contrato 1: 196 Contrato 2: 198 Contrato 3: 214 | F5: - | G5: Cumple | H5: Cumple | I5: N/A | J5: Contrato 1: 100 Contrato 2: 111 | K5: - | L5: Cumple | M5: Cumple | N5: Cumple | O5: Contrato 1: 773 Contrato 2: 775 Contrato 3:777 | P5: - | Q5: Cumple | R5: N/A | S5: N/A | T5: 182
A6: En ciudades con una población igual o superior a dos millones (2.000.000) de habitantes. Nota: La población de las ciudades serán tomadas de acuerdo con las cifras oficiales de población disponibles al momento de la ejecución del contrato (censos, proyecciones o estadísticas de la autoridad competente. | B6: No cumple | C6: Cumple | D6: Cumple | E6: Contrato 1: 196 Contrato 2: 198 Contrato 3: 214 | F6: Contrato 1: No se evidencia la ciudad | G6: Cumple | H6: Cumple | I6: N/A | J6: Contrato 1: 100 Contrato 2: 111 | K6: - | L6: Cumple | M6: Cumple | N6: Cumple | O6: Contrato 1: 773 Contrato 2: 775 Contrato 3:777 | P6: - | Q6: Cumple | R6: N/A | S6: N/A | T6: 182
A7: RESULTADO | B7: NO CUMPLE | G7: CUMPLE | L7: CUMPLE | Q7: NO CUMPLE

Sheet CAP TEC - Exp Especifica
A1: REQUISITOS DE PARTICIPACIÓN Y HABILITACIÓN 3.1.2.CAPACIDAD TECNICA 3.1.2.2. Experiencia Especifica Habilitante | C1: COMPAÑÍA INTERNACIONAL DE INTEGRACION CI2 SA | F1: TECNOLOGÍAS DE LA INFORMACIÓN Y PAGO INTEGRADO S.A.S. TIPI | I1: UNIÓN TEMPORAL SIM MEDELLIN VF (FRISSON TECNOLOGIES S.A.S 90% - VERYTEL S.A. 10%) | L1: INTEIA S.A.S.
A2: ÍTEM | B2: DESCRIPCIÓN REQUISITO | C2: Contrato | D2: Folio | E2: Observación | F2: Contrato | G2: Folio | H2: Observación | I2: Contrato | J2: Folio | K2: Observación | L2: Contrato | M2: Folio | N2: Observación
A3: a | B3: El proponente deberá acreditar experiencia mediante la presentación de una (1) certificación de contrato ejecutado, terminado o en ejecución, | C3: Cumple | D3: 196 | E3: - | F3: Cumple | G3: 125 | H3: - | I3: Cumple | J3: 782-798 | K3: - | L3: Cumple | M3: 182 | N3: -
B4: dentro de los últimos quince (15) años, que contenga lo siguiente: | C4: Cumple | D4: 196 | E4: - | F4: Cumple | G4: 125 | H4: - | I4: Cumple | J4: 782-798 | K4: - | L4: Cumple | M4: 182 | N4: -
B5: Alcance del contrato: El contrato deberá haber tenido como objeto, alcance y/o actividades la operación y monitoreo en tiempo real de una plataforma tecnológica, entendida esta como un sistema integral de información, supervisión, despacho, control, videovigilancia, telemetría u otras tecnologías orientadas al soporte de la gestión urbana. | C5: Cumple | D5: 196 | E5: - | F5: Cumple | G5: 125 | H5: - | I5: Cumple | J5: 782-798 | K5: - | L5: Cumple | M5: 182 | N5: -
B6: Finalidad o misionalidad institucional: La plataforma tecnológica mencionada deberá haberse utilizado para garantizar, soportar o ejecutar la misionalidad institucional de un Centro de Control de Ciudad, siempre que su operación se haya orientado a funciones críticas como: Seguridad ciudadana y convivencia, Movilidad e ITS, Gestión de emergencias y despacho especializado, Supervisión de recursos críticos para la atención y despacho misional del centro de control. Tales como personal, equipos y/o vehículos | C6: Cumple | D6: 197 | E6: - | F6: Cumple | G6: 125 | H6: - | I6: Cumple | J6: 782-798 | K6: - | L6: Cumple | M6: 182 | N6: -
A7: b | B7: El proponente deberá acreditar experiencia mediante la presentación de una (1) certificación de contrato ejecutado, terminado o en ejecución, | C7: Cumple | D7: 198-213 | E7: - | F7: Cumple | G7: 136 | H7: - | I7: Cumple | J7: 800-830 | K7: - | L7: Cumple | M7: 182 | N7: -
B8: dentro de los últimos quince (15) años, que contenga lo siguiente: | C8: Cumple | D8: 198-213 | E8: - | F8: Cumple | G8: 136 | H8: - | I8: Cumple | J8: 800-830 | K8: - | L8: Cumple | M8: 182 | N8: -
B9: Alcance del contrato: el contrato tuvo como objeto, alcance y/o actividades, de manera expresa y verificable, la prestación de servicios de soporte especializado, mantenimiento preventivo y correctivo, todos ellos aplicados a una plataforma tecnológica de ciudad, gestionada desde un Centro de Control, siempre que su operación se oriente a actividades como: Gestión integral de seguridad ciudadana, Movilidad y tránsito (ITS, control semafórico, monitoreo de tráfico), Gestión, seguimiento y control de recursos humanos, equipos y/o vehículos en campo, Gestión y despacho de emergencias, Supervisión de servicios públicos o infraestructura urbana crítica. | C9: Cumple | D9: 198-213 | E9: - | F9: Cumple | G9: 136 | H9: - | I9: Cumple | J9: 800-830 | K9: - | L9: Cumple | M9: 182 | N9: -
A10: c | B10: El proponente deberá acreditar experiencia mediante la presentación de una (1) certificación de contrato ejecutado, terminado o en ejecución | C10: Cumple | D10: 231-233 | E10: - | F10: Cumple | G10: 155-156 | H10: - | I10: Cumple | J10: 832-911 | K10: - | L10: Cumple | M10: 182 | N10: -
B11: los últimos quince (15) años, que contenga lo siguiente: | C11: Cumple | D11: 231-233 | E11: - | F11: Cumple | G11: 155-156 | H11: - | I11: Cumple | J11: 832-911 | K11: - | L11: Cumple | M11: 182 | N11: -
B12: Alcance del contrato: El contrato deberá haber tenido como objeto, alcance y/o actividades que acrediten experiencia en suministro e implementación de una solución tecnológica orientada al fortalecimiento y apoyo de las labores operativas y de control desarrolladas por los organismos o agencias que estén integrados a un centro de emergencias y/o centros de control, en el marco de sus funciones legales y operativas. | C12: Cumple | D12: 231-233 | E12: - | F12: Cumple | G12: 155-156 | H12: - | I12: Cumple | J12: 832-911 | K12: - | L12: Cumple | M12: 182 | N12: -
B13: Para efectos de verificación, se entenderá que cumplen este requisito aquellos contratos que incluyan uno o varios de los siguientes elementos, siempre que hagan parte integral de la solución tecnológica implementada: Sistemas de gestión de tránsito (ITS) o plataformas de control de tráfico, Sistemas para la operación de seguridad y convivencia, Soluciones tecnológicas para supervisión de la movilidad en tiempo real, Herramientas de soporte a la operación vial, despacho y control operativo, Integración de dispositivos electrónicos, sensores, cámaras o analítica aplicada a tránsito y movilidad, Plataformas de monitoreo de flujos vehiculares o gestión del transporte público, Soluciones para fortalecimiento de la capacidad operativa de agentes de tránsito, Sistemas tecnológicos que respalden procesos sancionatorios, detección de infracciones o control normativo vehicular, siempre que sean parte del ecosistema tecnológico de movilidad de la ciudad. | C13: Cumple | D13: 231-233 | E13: - | F13: Cumple | G13: 155-156 | H13: - | I13: Cumple | J13: 832-911 | K13: - | L13: Cumple | M13: 182 | N13: -
A14: RESULTADO | C14: CUMPLE | F14: CUMPLE | I14: CUMPLE | L14: CUMPLE

Sheet CAP TEC - Personal mínimo
A1: REQUISITOS DE PARTICIPACIÓN Y HABILITACIÓN 3.1.2.CAPACIDAD TECNICA 3.1.2.4. Personal mínimo requerido | B1: COMPAÑÍA INTERNACIONAL DE INTEGRACION CI2 SA | D1: TECNOLOGÍAS DE LA INFORMACIÓN Y PAGO INTEGRADO S.A.S. TIPI | F1: UNIÓN TEMPORAL SIM MEDELLIN VF (FRISSON TECNOLOGIES S.A.S 90% - VERYTEL S.A. 10%) | H1: INTEIA S.A.S.
A2: DESCRIPCIÓN REQUISITO | B2: Aportado | C2: Folio | D2: Aportado | E2: Folio | F2: Aportado | G2: Folio | H2: Aportado | I2: Folio
A3: Director General:
A4: Ingeniero Civil y/o Ingeniero Electrónico y/o Ingeniero Electricista y/o Ingeniero de Sistemas y/o carreras afines. Deberá contar con especialización y/o maestría en: vías y transporte y/o Gerencia de proyectos. | B4: CUMPLE | C4: 243 | D4: CUMPLE | E4: 157 | F4: CUMPLE | G4: 915-928 | H4: CUMPLE | I4: 195 - 199
A5: Experiencia General: Acreditar experiencia general no menor de ocho (8) años, contada entre la fecha de expedición de la matrícula profesional y la fecha de presentación de ofertas del presente proceso. Para efectos de acreditación de la experiencia general se deberá aportar copia de la tarjeta profesional y del certificado de vigencia de la matricula profesional. | B5: CUMPLE | C5: 241 - 242 | D5: CUMPLE | E5: 168-182 | F5: CUMPLE | G5: 915-928 | H5: CUMPLE | I5: 195 - 200
A6: Experiencia Específica: Acreditar experiencia específica no menor a seis (6) años como Director de Proyectos y/o Gerente de Proyectos y/o Coordinador de proyectos de tránsito, o ejecución de cargos directivos en movilidad y transporte o proyectos de ITS destinado para Movilidad. | B6: CUMPLE | C6: 245 | D6: CUMPLE | E6: 179-186 | F6: CUMPLE | G6: 927-980 | H6: NO CUMPLE | I6: NO APORTA
A7: Consentimiento del personal: Deberá aportar una carta de intención suscrita por la persona que acredita el requisito, donde certifican que tienen interés en realizar las actividades propias del contrato y conocen las implicaciones y actividades a desarrollar. | B7: CUMPLE | C7: 236 | D7: CUMPLE | E7: 189 | F7: CUMPLE | G7: 981-982 | H7: CUMPLE | I7: 192
A8: El proponente deberá diligenciar el ANEXO N° 9 - CUMPLIMIENTO PERSONAL. | B8: CUMPLE | C8: 235 | D8: CUMPLE | E8: 157 | F8: CUMPLE | G8: 913 | H8: CUMPLE | I8: 191
A9: RESULTADO | B9: CUMPLE | D9: CUMPLE | F9: CUMPLE | H9: NO CUMPLE

Sheet CAP TEC - Trayectoria
A1: REQUISITOS DE PARTICIPACIÓN Y HABILITACIÓN 3.1.2.CAPACIDAD TECNICA 3.1.2.5. Trayectoria | B1: COMPAÑÍA INTERNACIONAL DE INTEGRACION CI2 SA | D1: TECNOLOGÍAS DE LA INFORMACIÓN Y PAGO INTEGRADO S.A.S. TIPI | F1: UNIÓN TEMPORAL SIM MEDELLIN VF (FRISSON TECNOLOGIES S.A.S 90% - VERYTEL S.A. 10%) | I1: INTEIA S.A.S.
A2: DESCRIPCIÓN REQUISITO | B2: Años | C2: Folio | D2: Años | E2: Folio | F2: FRISSON TECNOLOGIES S.A.S | G2: VERYTEL S.A. | H2: Folio | I2: Años | J2: Folio
F3: Años | G3: Años
A4: El participante deberá acreditar por lo menos cinco (5) años de trayectoria en el mercado, a través de la fecha del Certificado de Existencia y Representación Legal sede principal. Así mismo deberá diligenciar el ANEXO N° 10 - TRAYECTORIA | B4: 26 | C4: 255-259 | D4: 14 | E4: 130 | F4: 11 | G4: 27 | H4: 1000-1003 1006- 1109 | I4: 14 | J4: 206
A5: RESULTADO | B5: CUMPLE | D5: CUMPLE | F5: CUMPLE | I5: CUMPLE

Sheet CAP TEC - Compra pública
A1: FECHA Y HORA DE CIERRE DEL PROCESO: 05 DE DICIEMBRE DE 2025 A LAS 10:00 HORAS | C1: SPO 2025-7: CONTRATO MARCO PARA LA PRESTACIÓN DE SERVICIOS ESPECIALIZADOS ORIENTADOS A LA IMPLEMENTACIÓN Y OPERACIÓN DEL ECOSISTEMA TECNOLÓGICO DEL SISTEMA INTELIGENTE DE MOVILIDAD DE MEDELLÍNCONTRATO MARCO PARA LA PRESTACIÓN DE SERVICIOS ESPECIALIZADOS ORIENTADOS A LA IMPLEMENTACIÓN Y OPERACIÓN DEL ECOSISTEMA TECNOLÓGICO DEL SISTEMA INTELIGENTE DE MOVILIDAD DE MEDELLÍN
C2: OFERENTE 1 | G2: OFERENTE 2 | K2: OFERENTE 3 | P2: OFERENTE 4
A3: REQUISITOS DE PARTICIPACIÓN Y HABILITACIÓN 3.1.2.CAPACIDAD TECNICA 3.1.2.6. Cumplimiento compra publica innovadora, sostenible y socialmente responsable | C3: COMPAÑÍA INTERNACIONAL DE INTEGRACION CI2 SA | E3: OBSERVACIÓN | F3: REQUERIDO | G3: TECNOLOGÍAS DE LA INFORMACIÓN Y PAGO INTEGRADO S.A.S. TIPI | I3: OBSERVACIÓN | J3: REQUERIDO | K3: UNIÓN TEMPORAL SIM MEDELLIN VF (FRISSON TECNOLOGIES S.A.S 90% - VERYTEL S.A. 10%) | N3: OBSERVACIÓN | O3: REQUERIDO | P3: INTEIA S.A.S. | R3: OBSERVACIÓN | S3: REQUERIDO
C4: 830056149-0 | D4: FOLIO FÍSICO N° | G4: 900446461-1 | H4: FOLIO FÍSICO N° | K4: 900784911-3 FRISSON TECNOLOGIES S.A.S | L4: 830050633-7 VERYTEL S.A. | M4: FOLIO FÍSICO N° | P4: 900457885-8 | Q4: FOLIO FÍSICO N°
A5: UBICACIÓN PLIEGO | B5: DESCRIPCIÓN REQUISITO | C5: APORTADO | G5: APORTADO | K5: APORTADO | L5: APORTADO | P5: APORTADO
A6: 3.1.2.6. | B6: ANEXO N° 11 - COMPRA PÚBLICA INNOVADORA | C6: SI | D6: 262 | F6: NO | G6: SI | H6: 191 | J6: NO | K6: SI | M6: 1012 | O6: NO | P6: SI | Q6: 207 | S6: NO
B7: ANEXO N°12 - COMPRA PÚBLICA SOSTENIBLE | C7: SI | D7: 264 | F7: NO | G7: SI | H7: 192 | J7: NO | K7: SI | M7: 1013 | O7: NO | P7: SI | Q7: 208 | S7: NO
B8: ANEXO N°13- COMPRA PÚBLICA SOCIALMENTE RESPONSABLE | C8: SI | D8: 266 | F8: NO | G8: SI | H8: 132 | J8: NO | K8: SI | M8: 1014 | O8: NO | P8: SI | Q8: 209 | S8: NO
A9: RESULTADO | C9: CUMPLE | G9: CUMPLE | K9: CUMPLE | P9: CUMPLE

Sheet CAP FIN Y ORG
A1: REQUISITOS DE PARTICIPACIÓN Y HABILITACIÓN 3.1.3.CAPACIDAD FINANCIERA Y ORGANIZACIONAL
A3: COMPAÑÍA INTERNACIONAL DE INTEGRACIÓN SA | B3: Índice de liquidez | C3: Nivel de endeudamiento | D3: Razón de Cobertura | E3: Rentabilidad sobre el Patrimonio | F3: Rentabilidad sobre el Activo | G3: Capital de Trabajo | H3: Resultado
A4: Requerido | B4: igual o superior a | C4: igual o inferior a | D4: mayor o igual a | E4: mayor o igual a | F4: mayor o igual a | G4: mayor o igual a | H4: HABILITADO
B5: 1 | C5: 0.7 | D5: 2.5 | E5: 0.09 | F5: 0.04 | G5: $ 1,500,000,000
A6: Presentado | B6: 3.0 | C6: 0.2 | D6: 52184.1 | E6: 0.4 | F6: 0.3 | G6: $ 42,737,303,007
A7: RESULTADO | B7: CUMPLE | C7: CUMPLE | D7: CUMPLE | E7: CUMPLE | F7: CUMPLE | G7: CUMPLE
A9: TECNOLOGÍAS DE LA INFORMACIÓN Y PAGO INTEGRADO SAS | B9: Índice de liquidez | C9: Nivel de endeudamiento | D9: Razón de Cobertura | E9: Rentabilidad sobre el Patrimonio | F9: Rentabilidad sobre el Activo | G9: Capital de Trabajo | H9: Resultado
A10: Requerido | B10: igual o superior a | C10: igual o inferior a | D10: mayor o igual a | E10: mayor o igual a | F10: mayor o igual a | G10: mayor o igual a | H10: HABILITADO
B11: 1 | C11: 0.7 | D11: 2 | E11: 0.07 | F11: 0.05 | G11: $ 1,000,000,000
A12: Presentado | B12: 3.7 | C12: 0.3 | D12: 3.1 | E12: 0.2 | F12: 0.1 | G12: $ 1,797,120,741
A13: RESULTADO | B13: CUMPLE | C13: CUMPLE | D13: CUMPLE | E13: CUMPLE | F13: CUMPLE | G13: CUMPLE
A15: UT SIM MEDELLIN VF | B15: Índice de liquidez | C15: Nivel de endeudamiento | D15: Razón de Cobertura | E15: Rentabilidad sobre el Patrimonio | F15: Rentabilidad sobre el Activo | G15: Capital de Trabajo | H15: Resultado
A16: Requerido | B16: igual o superior a | C16: igual o inferior a | D16: mayor o igual a | E16: mayor o igual a | F16: mayor o igual a | G16: mayor o igual a | H16: HABILITADO
B17: 1 | C17: 0.7 | D17: 2 | E17: 0.07 | F17: 0.05 | G17: $ 1,000,000,000
A18: Presentado | B18: 2.6 | C18: 0.6 | D18: 60.3 | E18: 0.9 | F18: 0.4 | G18: $ 31,006,906,464
A19: RESULTADO | B19: CUMPLE | C19: CUMPLE | D19: CUMPLE | E19: CUMPLE | F19: CUMPLE | G19: CUMPLE
A21: INTEIA SAS | B21: Índice de liquidez | C21: Nivel de endeudamiento | D21: Razón de Cobertura | E21: Rentabilidad sobre el Patrimonio | F21: Rentabilidad sobre el Activo | G21: Capital de Trabajo | H21: Resultado
A22: Requerido | B22: igual o superior a | C22: igual o inferior a | D22: mayor o igual a | E22: mayor o igual a | F22: mayor o igual a | G22: mayor o igual a | H22: HABILITADO
B23: 1 | C23: 0.7 | D23: 2.5 | E23: 0.09 | F23: 0.04 | G23: $ 1,500,000,000
A24: Presentado | B24: 1.1 | C24: 0.5 | D24: 22.1 | E24: 0.4 | F24: 0.2 | G24: $ 1,599,814,000
A25: RESULTADO | B25: CUMPLE | C25: CUMPLE | D25: CUMPLE | E25: CUMPLE | F25: CUMPLE | G25: CUMPLE

Sheet Ver y Eva - Propuestas
A1: VERIFICACIÓN Y EVALUACIÓN DE LAS PROPUESTAS
A2: Criterio | B2: COMPAÑÍA INTERNACIONAL DE INTEGRACIÓN SA | C2: TECNOLOGÍAS DE LA INFORMACIÓN Y PAGO INTEGRADO SAS | D2: UT SIM MEDELLIN VF | E2: INTEIA SAS
A3: Factor Técnico | B3: ='Cert Fábrica'!D9+'Resp NENA EENA APCO'!B7+'Cert Experiencia'!D8 -> 250 | C3: ='Cert Fábrica'!F9+'Resp NENA EENA APCO'!D7+'Cert Experiencia'!F8 -> 420 | D3: ='Cert Fábrica'!H9+'Resp NENA EENA APCO'!F7+'Cert Experiencia'!H8 -> 260 | E3: ='Cert Fábrica'!J9+'Resp NENA EENA APCO'!H7+'Cert Experiencia'!J8 -> 50
A4: Factor Económico (Precio ) | B4: ='Factor Económico'!B4 -> 317 | C4: ='Factor Económico'!C4 -> 337 | D4: ='Factor Económico'!D4 -> 338 | E4: ='Factor Económico'!E4 -> 328
A5: Estímulo a la industria Nacional Colombiana | B5: =Calidad!E3 -> 100 | C5: =Calidad!I3 -> 100 | D5: =Calidad!M3 -> 100 | E5: =Calidad!Q3 -> 100
A6: Personal con discapacidad | B6: =Calidad!E4 -> 0 | C6: =Calidad!I4 -> 0 | D6: =Calidad!M4 -> 10 | E6: =Calidad!Q4 -> 0
A7: Emprendimientos y empresas de mujeres | B7: =Calidad!E5 -> 2 | C7: =Calidad!I5 -> 0 | D7: =Calidad!M5 -> 2 | E7: =Calidad!Q5 -> 0
A8: TOTAL PUNTOS | B8: =B3+B4+B5+B6+B7 -> 669 | C8: =C3+C4+C5+C6+C7 -> 857 | D8: =D3+D4+D5+D6+D7 -> 710 | E8: =E3+E4+E5+E6+E7 -> 478

Sheet Cert Fábrica
A1: 4.2.1. Factor técnico – 550 puntos Certificaciones de fabrica – 150 puntos ANEXO Nº 17 - CERTIFICACIONES DE FABRICA | D1: COMPAÑÍA INTERNACIONAL DE INTEGRACIÓN SA | F1: TECNOLOGÍAS DE LA INFORMACIÓN Y PAGO INTEGRADO SAS | H1: UT SIM MEDELLIN VF | J1: INTEIA SAS
A2: ÍTEM | B2: FÁBRICA | C2: PUNTAJE MAXIMO EVALUABLE | D2: Puntos | E2: Folio | F2: Puntos | G2: Folio | H2: Puntos | I2: Folio | J2: Puntos | K2: Folio
A3: A | B3: Carbyne | C3: 40 | D3: 40 | E3: 358 | F3: 40 | G3: 196 | H3: 40 | I3: 1568 | J3: 0 | K3: -
A4: B | B4: PTV Group | C4: 20 | D4: 0 | E4: - | F4: 20 | G4: 197 | H4: 0 | I4: - | J4: 0 | K4: -
A5: C | B5: ISS | C5: 20 | D5: 20 | E5: 359 | F5: 20 | G5: 198 | H5: 20 | I5: 1569 | J5: 0 | K5: -
A6: D | B6: Collectif | C6: 25 | D6: 25 | E6: 360 | F6: 25 | G6: 199 | H6: 25 | I6: 1570 | J6: 0 | K6: -
A7: E | B7: Omnitrack | C7: 25 | D7: 25 | E7: 361 | F7: 25 | G7: 200 | H7: 25 | I7: 1571 | J7: 0 | K7: -
A8: F | B8: Genetec | C8: 20 | D8: 20 | E8: 362 | F8: 20 | G8: 201 | H8: 20 | I8: 1572 | J8: 0 | K8: -
A9: TOTAL | C9: =SUM(C3:C8) -> 150 | D9: =SUM(D3:D8) -> 130 | E9: - | F9: =SUM(F3:F8) -> 150 | G9: - | H9: =SUM(H3:H8) -> 130 | I9: - | J9: =SUM(J3:J8) -> 0 | K9: -
A11: Las cartas expedidas deben ser dirigidas al presente proceso, en papel membrete oficial y suscrita por personal competente. Las cartas deben especificar que el oferente cuenta con capacidad técnica y personal debidamente entrenado para la operación, configuración y administración de los diferentes módulos y herramientas que conforman la solución tecnológica. Para tal fin deberá diligenciar el ANEXO Nº 17 - CERTIFICACIONES DE FABRICA. Nota 1: La evaluación de los factores se hará incluyendo decimales en los eventos que la ponderación específica del factor así lo arroje, por lo que para efectos no habrá lugar a ajuste aritmético o arrastre hasta el siguiente número entero. Nota 2: En caso, de no diligenciar el anexo establecido y/o diligenciarlo de forma incompleta y/o con información inexacta y/o sin los soportes correspondientes, se computará cero (0) puntos en dicha categoría correspondiente a cada factor de evaluación. Nota 3: En caso, que las certificaciones no cumplan con lo establecido y/o su contenido no cumple con lo requerido en los pliegos de condiciones y/o no existan soportes que permitan constatar el factor de evaluación, se computará cero (0) puntos en dicha categoría correspondiente a cada factor de evaluación. Nota 4: Las certificaciones serán susceptibles de solicitud de aclaración siempre que no se trate de información que permita a la entidad verificar y/o comparar los factores de evaluación.

Sheet Resp NENA EENA APCO
A1: 4.2.1. Factor técnico – 550 puntos Respaldo NENA / EENA / APCO – 50 puntos | B1: COMPAÑÍA INTERNACIONAL DE INTEGRACIÓN SA | D1: TECNOLOGÍAS DE LA INFORMACIÓN Y PAGO INTEGRADO SAS | F1: UT SIM MEDELLIN VF | H1: INTEIA SAS
A2: ÍTEM | B2: Puntos | C2: Folio | D2: Puntos | E2: Folio | F2: Puntos | G2: Folio | H2: Puntos | I2: Folio
A3: El oferente deberá aportar una comunicación oficial, expedida en papel membrete original por alguna de las siguientes asociaciones internacionales: National Emergency Number Association – NENA ((Internacional), European Emergency Number Association – EENA (Europa), o Association of Public-Safety Communications Officials – APCO (Internacional). | B3: CUMPLE | C3: 355 | D3: CUMPLE | E3: 202 | F3: CUMPLE | G3: 1574 | H3: NO APORTA | I3: -
A4: La comunicación deberá estar suscrita por personal competente y autorizado de la respectiva asociación, y estar dirigida de manera expresa al presente proceso de contratación. | B4: CUMPLE | C4: 355 | D4: CUMPLE | E4: 202 | F4: CUMPLE | G4: 1574 | H4: NO APORTA | I4: -
A5: Respaldo técnico al oferente en la adopción, aplicación e implementación de estándares internacionales de aseguramiento de la calidad y mejores prácticas, aplicables en Latinoamérica, que sirvan como marco referencial para la operación del Centro de Control y permitan establecer métricas, conceptos, procesos y procedimientos orientados a la mejora continua de los servicios. | B5: CUMPLE | C5: 355 | D5: CUMPLE | E5: 202 | F5: CUMPLE | G5: 1574 | H5: NO APORTA | I5: -
A6: Respaldo a programas de formación, profesionalización y fortalecimiento de capacidades, dirigidos tanto a personal directivo como operativo, en temas relacionados con la gestión, operación, interoperabilidad y administración integral de centros de control bajo estándares y lineamientos internacionales emitidos por dichas asociaciones. | B6: CUMPLE | C6: 355 | D6: CUMPLE | E6: 202 | F6: CUMPLE | G6: 1574 | H6: NO APORTA | I6: -
A7: TOTAL | B7: 50 | C7: - | D7: 50 | E7: - | F7: 50 | G7: - | H7: 0 | I7: -

Sheet Cert Experiencia
A1: 4.2.1. Factor técnico – 550 puntos Certificaciones de experiencia – 350 puntos ANEXO N° 18 - CERTIFICACIÓN CAPACIDAD TÉCNICA | D1: COMPAÑÍA INTERNACIONAL DE INTEGRACIÓN SA | F1: TECNOLOGÍAS DE LA INFORMACIÓN Y PAGO INTEGRADO SAS | H1: UT SIM MEDELLIN VF | J1: INTEIA SAS
A2: ÍTEM | B2: CAPACIDAD TÉCNICA | C2: PUNTAJE MAXIMO EVALUABLE | D2: Puntos | E2: Observación | F2: Puntos | G2: Observación | H2: Puntos | I2: Observación | J2: Puntos | K2: Observación
A3: A | B3: Desarrollo de productos, soluciones y/o programas informáticos | C3: 70 | D3: 70 | E3: - | F3: 50 | G3: - | H3: 50 | I3: - | J3: 0 | K3: -
A4: B | B4: Implementación y estandarización de protocolos de atención para Centros de Control | C4: 70 | D4: 0 | E4: El contrato aportado es de suministro e implementación de infraestructura fisica no de protocolos de operación. | F4: 50 | G4: - | H4: 0 | I4: - | J4: 0 | K4: El contrato aportado es el mismo aportado para el requisito habilitante y no es valido de acuerdo con el pliego de condiciones y sus adendas. Adicionalmente el 2do contrato aportado si bien permite evidenciar la operación de mesa de ayuda para la cual se requieren protocolos no se puede evidenciar que sea en un centro de control.
A5: C | B5: Monitoreo, control, administración y optimización operacional de recursos públicos móviles y dispositivos de campo | C5: 70 | D5: 0 | E5: - | F5: 70 | G5: - | H5: 30 | I5: - | J5: 50 | K5: El contrato aportado es el mismo aportado para el requisito habilitante y no es valido de acuerdo con el pliego de condiciones y sus adendas.
A6: D | B6: Suministro, instalación, puesta en marcha, operación y/o mantenimiento de una plataforma tecnológica destinada al control, seguimiento en tiempo real, registro y supervisión de las actuaciones de funcionarios en campo | C6: 70 | D6: 0 | E6: - | F6: 50 | G6: - | H6: 0 | I6: - | J6: 0 | K6: -
A7: E | B7: Implementación, suministro y/o puesta en funcionamiento de una plataforma de analítica forense | C7: 70 | D7: 0 | E7: - | F7: 0 | G7: El certificado aportado no permite verificar la cantidad de registros que el factor determinante para el otorgamiento de puntaje | H7: 0 | I7: El certificado aportado no permite verificar la cantidad de registros que el factor determinante para el otorgamiento de puntaje | J7: 0 | K7: El contrato aportado es el mismo aportado para el requisito habilitante y no es valido de acuerdo con el pliego de condiciones y sus adendas.
A8: TOTAL | C8: =SUM(C3:C7) -> 350 | D8: =SUM(D3:D7) -> 70 | E8: - | F8: =SUM(F3:F7) -> 220 | G8: - | H8: =SUM(H3:H7) -> 80 | I8: - | J8: =SUM(J3:J7) -> 50 | K8: -

Sheet Factor Económico
A1: 4.2.2. Factor Económico (Precio) – 338 puntos Menor Valor ANEXO N° 19 - PRECIOS Y CANTIDADES | B1: COMPAÑÍA INTERNACIONAL DE INTEGRACIÓN SA | C1: TECNOLOGÍAS DE LA INFORMACIÓN Y PAGO INTEGRADO SAS | D1: UT SIM MEDELLIN VF | E1: INTEIA SAS
A2: Ítem | B2: Valor | C2: Valor | D2: Valor | E2: Valor
A3: Oferta económica | B3: $ 29,980,001,801 | C3: $ 28,183,704,293 | D3: $ 28,107,208,732 | E3: $ 28,997,782,503
A4: Puntaje | B4: =(338*MIN($B$3:$E$3))/B3 -> 317 | C4: =(338*MIN($B$3:$E$3))/C3 -> 337 | D4: =(338*MIN($B$3:$E$3))/D3 -> 338 | E4: =(338*MIN($B$3:$E$3))/E3 -> 328

Sheet Calidad
A1: ITEM | B1: CRITERIO | C1: PUNTAJE MAXIMO EVALUABLE | D1: COMPAÑÍA INTERNACIONAL DE INTEGRACION CI2 SA | H1: TECNOLOGÍAS DE LA INFORMACIÓN Y PAGO INTEGRADO S.A.S. TIPI | L1: UNIÓN TEMPORAL SIM MEDELLIN VF (FRISSON TECNOLOGIES S.A.S 90% - VERYTEL S.A. 10%) | P1: INTEIA S.A.S.
D2: APORTO | E2: PUNTAJE | F2: FOLIO | G2: OBSERVACIONES | H2: APORTO | I2: PUNTAJE | J2: FOLIO | K2: OBSERVACIONES | L2: APORTO | M2: PUNTAJE | N2: FOLIO | O2: OBSERVACIONES | P2: APORTO | Q2: PUNTAJE | R2: FOLIO | S2: OBSERVACIONES
A3: 4.2.3. | B3: Estímulo a la industria Nacional Colombiana | C3: 100 | D3: SI | E3: 100 | F3: 602-613 | H3: SI | I3: 100 | J3: - | L3: SI | M3: 100 | N3: 1671 | O3: SE COMPROMETEN A CONTRATAR AL MENOS EL 40% DE EMPLEADOS COLOMBIANOS | P3: SI | Q3: 100 | R3: 216
A4: 4.2.4. | B4: Personal con discapacidad | C4: 10 | D4: NO | E4: 0 | F4: - | G4: NO FUE APORTADO | H4: NO | I4: 0 | J4: - | K4: NO FUE APORTADO | L4: SI | M4: 10 | N4: 1697-1702 | P4: NO | Q4: 0 | R4: - | S4: NO FUE APORTADO
A5: 4.2.5. | B5: Emprendimientos y empresas de mujeres | C5: 2 | D5: SI | E5: 2 | F5: 615-678 | H5: NO | I5: 0 | J5: - | K5: NO FUE APORTADO | L5: SI | M5: 2 | N5: 1704-1781 | P5: NO | Q5: 0 | R5: - | S5: NO FUE APORTADO
A6: TOTAL | C6: =SUM(C3:C5) -> 112 | E6: 102 | I6: 100 | M6: 112 | Q6: 100
